bitfinex/quotes_BTCUSD_20241205
["timestamp","ask_amount","ask_price","bid_price","bid_amount"]
[1733366392688,0.5355,99730.0,99708.0,0.37589]
[1733366392931,0.5355,99730.0,99709.0,0.15]
[1733366393145,0.5355,99730.0,99711.0,0.15]
[1733366393365,0.5355,99730.0,99716.0,0.015]
[1733366393605,0.5355,99730.0,99722.0,0.015]
[1733366394042,0.5355,99761.0,99747.0,0.015]
[1733366394301,0.5355,99761.0,99757.0,0.015]
[1733366394514,0.5355,99761.0,99759.0,0.15]
[1733366394728,0.5355,99798.0,99761.0,0.015]
[1733366394963,0.5355,99798.0,99761.0,1.00015]
[1733366395419,0.5355,99798.0,99761.0,1.00023851]
[1733366395633,0.5355,99797.0,99761.0,1.00023851]
[1733366395856,0.5355,99807.0,99761.0,1.00023851]
[1733366396110,0.5355,99823.0,99807.0,0.015]
[1733366396575,0.000866,99835.0,99807.0,0.98487]
[1733366396576,0.5355,99821.0,99807.0,0.98487]
[1733366396843,0.55072568,99808.0,99807.0,0.98487]
[1733366397085,0.55072568,99808.0,99807.0,0.99987]
[1733366397296,0.01581106,99808.0,99807.0,0.99987]
[1733366397767,0.55131106,99808.0,99807.0,0.98487]
[1733366398005,0.55131106,99808.0,99807.0,0.83487]
[1733366398904,0.01581106,99808.0,99807.0,0.29937]
[1733366399363,0.01081106,99808.0,99807.0,0.29937]
[1733366399821,0.01081106,99808.0,99807.0,0.21437]
[1733366400060,0.01081106,99808.0,99807.0,0.51495]
[1733366400298,0.01081106,99808.0,99807.0,0.64995]
[1733366400983,0.01081106,99808.0,99807.0,0.49995]
[1733366401201,0.01081106,99808.0,99807.0,0.64995]
[1733366401920,0.54631106,99808.0,99807.0,0.49995]
[1733366402111,0.60094217,99808.0,99807.0,0.49995]
[1733366402366,0.60047834,99808.0,99807.0,0.49995]
[1733366402938,0.54584723,99808.0,99807.0,0.49995]
[1733366403183,0.54584723,99808.0,99807.0,0.51495]
[1733366403642,0.54584723,99808.0,99807.0,0.59455]
[1733366403643,0.01034723,99808.0,99807.0,0.59455]
[1733366403905,0.000866,99835.0,99826.0,0.015]
[1733366404135,0.000866,99835.0,99826.0,0.31552]
[1733366404386,0.57962884,99827.0,99826.0,0.97101895]
[1733366404627,0.17353231,99827.0,99826.0,0.97101895]
[1733366404850,0.02443231,99827.0,99826.0,0.96725]
[1733366405069,0.02443231,99827.0,99826.0,0.86725]
[1733366405280,0.02443231,99827.0,99826.0,0.91725]
[1733366405737,0.02443231,99827.0,99826.0,0.96725]
[1733366406871,0.000866,99835.0,99834.0,0.165]
[1733366407102,0.000866,99835.0,99834.0,0.46727236]
[1733366407319,0.000866,99835.0,99834.0,0.8747479]
[1733366407548,7.95599462,99837.0,99836.0,0.165]
[1733366407764,7.6999716,99837.0,99836.0,0.46925895]
[1733366407991,7.67996728,99837.0,99836.0,0.92280636]
[1733366408229,7.66996297,99837.0,99836.0,0.92280636]
[1733366408494,7.63951601,99837.0,99836.0,0.92280636]
[1733366408725,7.6238875,99837.0,99836.0,0.92280636]
[1733366408941,7.6238875,99837.0,99836.0,1.06526846]
[1733366410104,7.6238875,99837.0,99836.0,0.91526846]
[1733366410324,7.6238875,99837.0,99836.0,0.80026846]
[1733366410553,7.6238875,99837.0,99836.0,0.81526846]
[1733366410812,7.6238875,99837.0,99836.0,0.76526846]
[1733366411051,7.6238475,99837.0,99836.0,0.86526846]
[1733366411258,7.6238475,99837.0,99836.0,0.91526846]
[1733366411479,3.27255341,99800.0,99779.0,0.05058837]
[1733366411721,3.14972213,99800.0,99780.0,0.998674]
[1733366411953,3.12919887,99800.0,99781.0,0.923525]
[1733366412186,2.58410734,99800.0,99783.0,0.0913]
[1733366412428,2.58410734,99800.0,99784.0,0.15325182]
[1733366412642,2.57370084,99800.0,99785.0,0.03899375]
[1733366412861,2.51369717,99800.0,99787.0,0.0913]
[1733366413092,2.51369717,99800.0,99789.0,0.0913]
[1733366413318,2.51369717,99800.0,99791.0,0.0913]
[1733366413546,2.51369717,99800.0,99793.0,0.0913]
[1733366413767,2.51369717,99800.0,99795.0,0.0913]
[1733366413998,2.44742686,99800.0,99797.0,0.0924]
[1733366414224,2.02028182,99800.0,99799.0,0.0924]
[1733366414442,1.68102384,99800.0,99799.0,5.204461]
[1733366414676,1.67916064,99800.0,99799.0,4.81539]
[1733366414946,1.38331237,99800.0,99799.0,2.554129]
[1733366415184,1.35377167,99800.0,99799.0,2.554129]
[1733366415399,0.95166396,99800.0,99799.0,2.554129]
[1733366415619,0.87867398,99800.0,99799.0,2.5931619]
[1733366416079,0.85693445,99800.0,99799.0,2.7431619]
[1733366416342,7.6060895,99837.0,99801.0,0.0924]
[1733366416580,7.60094851,99837.0,99820.0,0.2424]
[1733366416830,7.34055008,99837.0,99822.0,0.2424]
[1733366417063,7.32493569,99837.0,99824.0,0.0988]
[1733366417325,7.32493569,99837.0,99825.0,3.76647036]
[1733366417540,7.28157182,99837.0,99826.0,3.43813951]
[1733366417754,7.28157182,99837.0,99827.0,1.68944314]
[1733366417981,7.27909375,99837.0,99828.0,0.49050975]
[1733366418202,7.27909375,99837.0,99829.0,0.753528]
[1733366418499,7.27876249,99837.0,99830.0,0.336591]
[1733366418705,7.27876249,99837.0,99831.0,0.3386168]
[1733366418920,7.27707119,99837.0,99832.0,0.03809177]
[1733366419146,7.27707119,99837.0,99833.0,0.601]
[1733366419375,7.27707119,99837.0,99834.0,0.03804562]
[1733366419606,7.27707119,99837.0,99835.0,0.3005]
[1733366419828,7.27707119,99837.0,99836.0,0.03774066]
[1733366420086,7.27807119,99837.0,99836.0,0.63872066]
[1733366420297,7.27807119,99837.0,99836.0,0.50317578]
[1733366420517,7.22459441,99837.0,99836.0,0.50317578]
[1733366420997,7.17411406,99837.0,99836.0,0.50317578]
[1733366421426,7.17166501,99837.0,99836.0,0.50317578]
[1733366421647,7.16966501,99837.0,99836.0,0.50317578]
[1733366421867,7.06953178,99837.0,99836.0,0.50317578]
[1733366422778,7.01908299,99837.0,99836.0,0.51217578]
[1733366422995,6.94433454,99837.0,99836.0,0.51217578]
[1733366423656,6.94429454,99837.0,99836.0,0.51217578]
[1733366424124,6.94171955,99837.0,99836.0,0.51217578]
[1733366424358,6.89123222,99837.0,99836.0,0.51217578]
[1733366424562,6.84112294,99837.0,99836.0,0.66217578]
[1733366424776,6.83071894,99837.0,99836.0,0.65317578]
[1733366425001,6.83161057,99837.0,99836.0,0.66217573]
[1733366425465,6.82549195,99837.0,99836.0,0.65317573]
[1733366425710,6.77487146,99837.0,99836.0,0.40900491]
[1733366425922,6.77587146,99837.0,99836.0,0.41800491]
[1733366426387,6.77487146,99837.0,99836.0,0.70949491]
[1733366426619,6.7720459,99837.0,99836.0,0.71849491]
[1733366427480,6.71319429,99837.0,99836.0,0.71849491]
[1733366428330,6.662679,99837.0,99836.0,0.74884947]
[1733366428757,5.11229737,99837.0,99836.0,0.74884947]
[1733366428975,5.06197492,99837.0,99836.0,0.74884947]
[1733366429434,5.00604952,99837.0,99836.0,1.07994947]
[1733366429653,4.85535547,99837.0,99836.0,1.07994947]
[1733366429867,4.80492955,99837.0,99836.0,1.07994947]
[1733366430098,4.70477631,99837.0,99836.0,1.07994947]
[1733366430334,4.65459509,99837.0,99836.0,0.99666947]
[1733366430763,4.65459509,99837.0,99836.0,1.42791547]
[1733366430976,4.50175165,99837.0,99836.0,0.73984947]
[1733366431204,4.50175165,99837.0,99836.0,0.74884947]
[1733366431692,4.50175165,99837.0,99836.0,0.76386639]
[1733366431908,4.50175165,99837.0,99836.0,0.61386639]
[1733366432134,4.50175165,99837.0,99836.0,0.62286639]
[1733366432346,4.45088969,99837.0,99836.0,0.62286639]
[1733366433264,4.45088969,99837.0,99836.0,0.74251183]
[1733366433490,4.34710197,99837.0,99836.0,0.71849491]
[1733366433956,4.34710197,99837.0,99836.0,0.56849491]
[1733366434170,4.33446884,99837.0,99836.0,0.56708695]
[1733366434817,4.2843048,99837.0,99836.0,0.55808695]
[1733366435030,4.2485248,99837.0,99836.0,0.55808695]
[1733366435247,4.2485248,99837.0,99836.0,0.56708695]
[1733366435615,4.2485248,99837.0,99836.0,0.70808695]
[1733366435817,4.19845176,99837.0,99836.0,0.70808695]
[1733366436019,4.19845176,99837.0,99836.0,0.87273412]
[1733366436406,4.14813208,99837.0,99836.0,0.72434971]
[1733366436834,4.14813208,99837.0,99836.0,1.28791071]
[1733366437040,4.14813208,99837.0,99836.0,0.82694171]
[1733366437246,4.14813208,99837.0,99836.0,0.72434971]
[1733366437448,4.14277667,99837.0,99836.0,0.72434971]
[1733366437871,4.14277667,99837.0,99836.0,0.71708695]
[1733366438098,4.14255732,99837.0,99836.0,0.70808695]
[1733366438304,4.09195632,99837.0,99836.0,0.70808695]
[1733366438510,4.0774686,99837.0,99836.0,0.72813781]
[1733366438708,4.0774686,99837.0,99836.0,0.71708695]
[1733366438986,4.0784686,99837.0,99836.0,0.56708695]
[1733366439184,4.0774686,99837.0,99836.0,0.55808695]
[1733366439443,4.02670076,99837.0,99836.0,0.57608695]
[1733366439651,3.97632386,99837.0,99836.0,0.57608695]
[1733366440681,3.97532386,99837.0,99836.0,0.56708695]
[1733366441158,3.97632386,99837.0,99836.0,0.56708695]
[1733366441408,3.97532386,99837.0,99836.0,0.55808695]
[1733366441607,3.97532386,99837.0,99836.0,0.56708695]
[1733366441925,3.97632386,99837.0,99836.0,0.56708695]
[1733366442122,3.97632386,99837.0,99836.0,0.71881815]
[1733366442330,3.92623046,99837.0,99836.0,0.72781815]
[1733366442534,3.92623046,99837.0,99836.0,0.75570507]
[1733366442747,3.92623046,99837.0,99836.0,0.71881815]
[1733366443205,3.89593046,99837.0,99836.0,0.72781815]
[1733366443824,3.87925142,99837.0,99836.0,1.41831815]
[1733366444027,3.6298837,99837.0,99836.0,1.17511515]
[1733366444260,3.51409119,99837.0,99836.0,1.02661115]
[1733366444497,3.4758832,99837.0,99836.0,0.70981815]
[1733366444706,3.43831289,99837.0,99836.0,1.08605715]
[1733366444939,3.32924791,99837.0,99836.0,1.09505715]
[1733366445171,3.30166774,99837.0,99836.0,1.16925715]
[1733366445374,3.29072836,99837.0,99836.0,1.18725715]
[1733366445583,3.2867186,99837.0,99836.0,1.18725715]
[1733366445825,3.2774129,99837.0,99836.0,1.16925715]
[1733366446055,3.27333016,99837.0,99836.0,1.17825715]
[1733366446265,3.26763016,99837.0,99836.0,1.17825715]
[1733366446477,3.24613417,99837.0,99836.0,1.20353644]
[1733366447397,3.22230231,99837.0,99836.0,1.19453644]
[1733366447597,3.14704119,99837.0,99836.0,1.19453644]
[1733366447816,3.14669048,99837.0,99836.0,1.21253644]
[1733366448075,3.09359866,99837.0,99836.0,1.21253644]
[1733366448287,3.08939866,99837.0,99836.0,1.21253644]
[1733366448491,3.08939866,99837.0,99836.0,1.06253644]
[1733366448712,3.08939866,99837.0,99836.0,1.03725715]
[1733366448713,3.08128371,99837.0,99836.0,1.03725715]
[1733366449151,2.82342706,99837.0,99836.0,1.03725715]
[1733366449363,2.82105425,99837.0,99836.0,1.03725715]
[1733366449585,2.82105425,99837.0,99836.0,0.94505715]
[1733366449797,2.82105425,99837.0,99836.0,0.76302215]
[1733366450000,2.68879508,99837.0,99836.0,0.57781815]
[1733366450441,2.68859508,99837.0,99836.0,0.57781815]
[1733366450670,2.68859508,99837.0,99836.0,0.56881815]
[1733366450947,2.76699508,99837.0,99836.0,0.56881815]
[1733366451181,2.50739185,99837.0,99836.0,0.57781815]
[1733366451402,2.50739185,99837.0,99836.0,0.55981815]
[1733366451616,2.50739185,99837.0,99836.0,0.57781815]
[1733366451827,2.42899185,99837.0,99836.0,0.57781815]
[1733366452061,2.3823482,99837.0,99836.0,0.56881815]
[1733366452265,2.33287332,99837.0,99836.0,0.56881815]
[1733366452473,2.33100938,99837.0,99836.0,0.57781815]
[1733366452683,2.28151825,99837.0,99836.0,0.56881815]
[1733366452901,2.2309226,99837.0,99836.0,0.56881815]
[1733366453129,2.23082429,99837.0,99836.0,0.71881815]
[1733366453742,2.23062429,99837.0,99836.0,0.72267823]
[1733366453959,2.23062429,99837.0,99836.0,0.71881815]
[1733366453960,2.22522429,99837.0,99836.0,0.71881815]
[1733366454173,2.16007349,99837.0,99836.0,0.70981815]
[1733366454389,2.16007349,99837.0,99836.0,0.71881815]
[1733366454601,2.16007349,99837.0,99836.0,0.72781815]
[1733366454817,2.16007349,99837.0,99836.0,0.70981815]
[1733366455060,2.15837349,99837.0,99836.0,0.70981815]
[1733366455261,2.14477088,99837.0,99836.0,0.72781815]
[1733366455465,2.14457088,99837.0,99836.0,0.71881815]
[1733366455685,2.14457088,99837.0,99836.0,0.70981815]
[1733366455897,2.14457088,99837.0,99836.0,0.71881815]
[1733366456556,1.82702051,99837.0,99836.0,0.72074819]
[1733366456760,1.82682051,99837.0,99836.0,0.72267823]
[1733366457606,1.82432051,99837.0,99836.0,0.71367823]
[1733366457852,1.82432051,99837.0,99836.0,0.72267823]
[1733366458077,1.82062051,99837.0,99836.0,0.72781815]
[1733366458310,1.82062051,99837.0,99836.0,0.71881815]
[1733366458575,1.81742051,99837.0,99836.0,0.72781815]
[1733366459008,7.07563929,99847.0,99836.0,0.63034412]
[1733366459237,7.07239832,99847.0,99842.0,0.15]
[1733366459468,2.01069832,99847.0,99843.0,0.74400154]
[1733366459691,1.95824144,99853.0,99844.0,0.2484]
[1733366459938,5.74698634,99857.0,99846.0,0.0984]
[1733366460165,0.69417055,99857.0,99848.0,0.2484]
[1733366460389,8.74864857,99868.0,99851.0,0.0984]
[1733366460619,8.74864857,99868.0,99852.0,0.79377]
[1733366460821,5.92864857,99868.0,99853.0,0.2484]
[1733366461064,3.98864857,99868.0,99854.0,0.79554135]
[1733366461285,3.98864857,99868.0,99855.0,0.00177145]
[1733366461509,3.98864857,99868.0,99857.0,0.15]
[1733366461743,3.98864857,99868.0,99858.0,0.64552157]
[1733366461942,3.98864857,99868.0,99859.0,0.15]
[1733366462165,3.98864857,99868.0,99861.0,0.15]
[1733366462436,3.98829294,99868.0,99863.0,0.15]
[1733366462649,0.87829294,99868.0,99864.0,0.64548135]
[1733366462858,7.77521487,99878.0,99866.0,0.0986]
[1733366463061,7.71770749,99878.0,99867.0,0.45217116]
[1733366463270,6.83990749,99878.0,99868.0,0.00177122]
[1733366463552,4.90170749,99878.0,99869.0,0.54899]
[1733366463754,4.89060787,99878.0,99870.0,0.15177116]
[1733366463960,4.89060787,99878.0,99872.0,0.15]
[1733366464175,4.89060787,99878.0,99873.0,1.26008318]
[1733366464176,3.46458799,99878.0,99873.0,1.26008318]
[1733366464405,3.02751281,99878.0,99875.0,0.0986]
[1733366464648,3.02751281,99878.0,99873.0,2.08636329]
[1733366464649,8.98974469,99888.0,99887.0,0.55]
[1733366464858,6.51130544,99888.0,99887.0,1.77707]
[1733366465082,0.89603554,99888.0,99887.0,1.77707]
[1733366465293,0.010776,99896.0,99887.0,1.77707]
[1733366465528,23.5783117,99900.0,99899.0,0.7]
[1733366465732,18.41486283,99900.0,99899.0,1.51636213]
[1733366465903,13.24796295,99900.0,99899.0,1.96135213]
[1733366466121,9.47772807,99900.0,99899.0,1.96135213]
[1733366466395,8.04955969,99900.0,99899.0,1.96135213]
[1733366466515,8.04183605,99900.0,99899.0,1.96135213]
[1733366466918,0.00018,99930.0,99901.0,0.0976]
[1733366467158,0.0008664,99968.0,99900.0,0.26408027]
[1733366467159,0.0008664,99968.0,99926.0,0.0976]
[1733366467367,0.0008664,99968.0,99942.0,0.0976]
[1733366467579,0.72729798,99988.0,99957.0,0.0976]
[1733366467809,55.84856907,99999.0,99989.0,0.2476]
[1733366468042,52.0950172,99999.0,99995.0,0.2476]
[1733366468255,52.0950172,99999.0,99994.0,0.25]
[1733366468256,52.08789429,99999.0,99997.0,0.0976]
[1733366468519,52.08789429,99999.0,99998.0,0.89331]
[1733366468966,52.08789429,99999.0,99998.0,0.92152952]
[1733366469189,52.08789429,99999.0,99998.0,0.89331]
[1733366470118,52.08789429,99999.0,99998.0,0.74331]
[1733366471210,52.08789429,99999.0,99998.0,0.99331]
[1733366471659,38.61913532,99999.0,99998.0,0.99331]
[1733366471876,33.67821354,99999.0,99998.0,4.65331]
[1733366472103,14.97418252,100000.0,99999.0,0.0121961]
[1733366472308,11.92653914,100000.0,99999.0,0.03211351]
[1733366472522,8.66156997,100000.0,99999.0,0.09087615]
[1733366472770,5.83186597,100000.0,99999.0,0.04083603]
[1733366472972,4.21102815,100000.0,99999.0,0.04083603]
[1733366473205,4.10800819,100000.0,99999.0,0.37920873]
[1733366473452,3.89441261,100000.0,99999.0,0.37920873]
[1733366473657,3.38894255,100000.0,99999.0,0.37920873]
[1733366473914,3.08111681,100000.0,99999.0,1.47519791]
[1733366474146,3.08111681,100000.0,99999.0,1.52523803]
[1733366474147,0.4019237,100000.0,99999.0,1.52523803]
[1733366474358,0.10354977,100050.0,100000.0,0.00738779]
[1733366474559,0.09849299,100070.0,100020.0,0.25]
[1733366474783,0.07893832,100070.0,100020.0,1.84556213]
[1733366475009,0.05340298,100070.0,100020.0,1.74276213]
[1733366475195,0.05340298,100070.0,100030.0,0.04983081]
[1733366475431,0.05340298,100070.0,100050.0,0.0454]
[1733366475671,0.05340298,100070.0,100050.0,1.24312494]
[1733366475877,0.04406131,100070.0,100050.0,0.54960157]
[1733366476143,0.03023271,100070.0,100060.0,0.00089182]
[1733366476397,0.02421232,100070.0,100060.0,0.2495]
[1733366476662,0.003275,100120.0,100060.0,0.34383351]
[1733366476891,0.05,100360.0,100130.0,0.66886649]
[1733366477110,0.13962232,100400.0,100250.0,0.00542819]
[1733366477111,0.04457181,100320.0,100250.0,0.00542819]
[1733366477319,0.04457181,100330.0,100250.0,1.13937167]
[1733366477522,0.04457181,100370.0,100300.0,0.00542819]
[1733366477795,0.1281,100410.0,100300.0,1.13937167]
[1733366477796,0.04457181,100350.0,100300.0,1.13937167]
[1733366477999,0.03457181,100370.0,100320.0,0.01542819]
[1733366478244,0.4603938,100570.0,100320.0,1.13828167]
[1733366478451,0.03167571,100370.0,100320.0,0.98284466]
[1733366478665,0.02,100350.0,100320.0,0.94206574]
[1733366478898,0.4603938,100570.0,100320.0,0.94206574]
[1733366478899,0.02586479,100360.0,100320.0,0.94206574]
[1733366479132,0.000866,100450.0,100370.0,0.05]
[1733366479363,0.02570514,100440.0,100390.0,0.05]
[1733366479586,0.02571567,100450.0,100390.0,0.84026574]
[1733366479808,0.02571567,100450.0,100400.0,0.00088881]
[1733366480013,0.026136,100440.0,100400.0,0.00088872]
[1733366480229,0.026136,100440.0,100390.0,0.94215425]
[1733366480447,0.02331623,100430.0,100390.0,0.94215425]
[1733366480667,0.4603938,100570.0,100390.0,1.19939126]
[1733366480875,0.02549378,100440.0,100390.0,1.19939126]
[1733366481081,0.02954101,100550.0,100390.0,0.99215425]
[1733366481295,0.03959,100900.0,100390.0,0.99215425]
[1733366481556,0.197863,101080.0,100870.0,3.77989687]
[1733366481794,0.01999998,101100.0,100870.0,3.77989687]
[1733366481795,0.198255,100880.0,100870.0,2.8908626]
[1733366482019,0.198482,100770.0,100660.0,0.40860373]
[1733366482277,0.198401,100810.0,100660.0,0.28509711]
[1733366482475,0.01725607,100760.0,100560.0,1.2315]
[1733366482703,0.198472,100770.0,100560.0,1.2315]
[1733366482909,0.00281039,100750.0,100560.0,1.2666155]
[1733366483141,0.01568512,100760.0,100570.0,0.58522756]
[1733366483391,0.0209454,100810.0,100800.0,0.2]
[1733366483612,0.07319055,100860.0,100800.0,0.07604416]
[1733366483816,0.04957065,100980.0,100600.0,4e-05]
[1733366484044,0.00516535,100850.0,100800.0,0.005018]
[1733366484269,0.0157055,100950.0,100800.0,0.005018]
[1733366484500,0.02177301,100970.0,100650.0,0.694]
[1733366484501,0.04912973,100980.0,100650.0,0.68842104]
[1733366484726,0.01112779,100950.0,100810.0,0.04688659]
[1733366484952,0.000866,100990.0,100810.0,0.04688659]
[1733366485176,0.02608524,100970.0,100810.0,0.04688659]
[1733366485493,0.000866,100990.0,100940.0,0.13067978]
[1733366485584,0.000866,100990.0,100800.0,8.851e-05]
[1733366485821,0.005,100970.0,100680.0,0.0475]
[1733366486053,0.000866,100990.0,100810.0,0.04278489]
[1733366486289,0.01999998,101100.0,100820.0,0.0475]
[1733366486556,0.01472206,101090.0,100830.0,0.17033623]
[1733366486789,0.01133933,101100.0,100840.0,0.04273205]
[1733366487023,0.12690005,101080.0,100840.0,0.04273205]
[1733366487252,0.197951,101040.0,100840.0,0.04273205]
[1733366487487,0.197945,101040.0,100840.0,0.03773205]
[1733366487722,0.09542496,101030.0,100840.0,0.03273205]
[1733366487949,0.10861058,101030.0,100680.0,0.049]
[1733366488180,0.198093,100970.0,100690.0,0.0203911]
[1733366488402,0.198042,100990.0,100690.0,0.0203911]
[1733366488631,0.00516075,100960.0,100690.0,0.0203911]
[1733366488862,0.198063,100980.0,100690.0,0.0103911]
[1733366489113,0.20328139,100950.0,100690.0,0.0103911]
[1733366489361,0.27739112,100970.0,100690.0,0.0103911]
[1733366489586,0.00516079,100940.0,100700.0,0.09525099]
[1733366489819,0.00059511,100950.0,100710.0,0.00619287]
[1733366490051,0.198078,100970.0,100710.0,0.84182753]
[1733366490289,0.00516075,100930.0,100720.0,0.08761875]
[1733366490520,0.197942,101040.0,100730.0,0.0477]
[1733366490726,0.0051581,100970.0,100730.0,0.88333466]
[1733366490962,0.0051581,100970.0,100740.0,0.08761875]
[1733366491193,0.0991581,100970.0,100750.0,0.08743122]
[1733366491401,0.04953904,100960.0,100750.0,0.70385053]
[1733366491613,0.276305,100960.0,100760.0,0.00231143]
[1733366491857,0.0782,100960.0,100760.0,0.00231143]
[1733366492484,0.0782,100960.0,100760.0,0.08197197]
[1733366492694,0.0782,100960.0,100770.0,0.07906543]
[1733366492915,0.0782,100960.0,100780.0,0.00231176]
[1733366493202,0.02756914,100960.0,100780.0,0.00231176]
[1733366493415,0.094,100970.0,100800.0,0.0477]
[1733366493629,0.094,100970.0,100810.0,0.06759534]
[1733366493858,0.094,100970.0,100820.0,0.0023002]
[1733366494325,0.044,100970.0,100820.0,0.0023002]
[1733366494533,0.044,100970.0,100830.0,0.03458868]
[1733366494753,0.044,100970.0,100840.0,0.00230618]
[1733366495176,0.044,100970.0,100840.0,0.10410618]
[1733366495612,0.093716,100970.0,100840.0,0.30210618]
[1733366495866,0.083716,100970.0,100860.0,0.0495]
[1733366496103,50.0,101030.0,100880.0,0.12552788]
[1733366496302,50.0,101030.0,100900.0,0.1244]
[1733366496513,50.0,101030.0,100960.0,0.1244]
[1733366496723,49.77251806,101030.0,100970.0,0.0488]
[1733366497012,49.53668094,101030.0,100970.0,0.0488]
[1733366497224,49.52310204,101030.0,100970.0,0.15069447]
[1733366497450,48.96175938,101030.0,100970.0,0.10189447]
[1733366497685,48.96175938,101030.0,100970.0,0.10046307]
[1733366497899,48.96175938,101030.0,100980.0,0.00235801]
[1733366498112,0.082,101010.0,100980.0,0.51793509]
[1733366498342,0.082,101010.0,100970.0,0.1318]
[1733366498542,0.0454,101000.0,100890.0,0.15]
[1733366498767,49.15973238,101030.0,100890.0,0.15059511]
[1733366498768,0.1274,100970.0,100890.0,0.15059511]
[1733366498978,0.0454,100960.0,100890.0,0.24969511]
[1733366499184,0.0454,100940.0,100890.0,0.24969511]
[1733366499390,0.0454,100940.0,100890.0,0.15059511]
[1733366499816,0.0454,100940.0,100870.0,0.0991]
[1733366500021,0.04599526,100940.0,100870.0,0.0991]
[1733366500680,0.04599526,100940.0,100890.0,0.03085889]
[1733366500910,0.04599526,100940.0,100870.0,0.0991]
[1733366501114,0.04599526,100940.0,100880.0,0.0219]
[1733366501331,0.04599526,100940.0,100760.0,0.5375]
[1733366501536,0.04599526,100940.0,100770.0,0.00076891]
[1733366501537,0.0494,100900.0,100770.0,0.00076891]
[1733366501771,0.0832,100890.0,100770.0,0.00076891]
[1733366501979,0.0832,100890.0,100770.0,0.53826891]
[1733366502198,0.198278,100870.0,100770.0,0.53826891]
[1733366502406,0.19798,101020.0,101000.0,3.9702948]
[1733366502607,0.19798,101020.0,101000.0,2.26679524]
[1733366502608,0.22571776,101020.0,101000.0,2.26679524]
[1733366502844,0.62227378,101020.0,101000.0,2.06871799]
[1733366503099,0.04814018,101010.0,101000.0,1.83816941]
[1733366503321,0.07489511,101010.0,101000.0,1.57844851]
[1733366503530,0.07489511,101010.0,101000.0,0.89856419]
[1733366503736,0.04814018,101010.0,101000.0,0.32659096]
[1733366503943,0.06727761,101010.0,100800.0,0.28830891]
[1733366504153,0.06727761,101010.0,100800.0,0.28826891]
[1733366504154,0.195374,100820.0,100800.0,0.28826891]
[1733366504413,0.198439,100790.0,100690.0,0.11818251]
[1733366504694,48.95551618,101030.0,100800.0,0.03826891]
[1733366504902,0.198256,100880.0,100800.0,0.03826891]
[1733366505107,48.9687018,101030.0,100800.0,0.03826891]
[1733366505309,0.198,101010.0,100800.0,0.00837131]
[1733366505517,0.198296,100860.0,100800.0,0.00837131]
[1733366505751,0.198233,100900.0,100800.0,0.00837131]
[1733366505964,0.198237,100890.0,100800.0,0.00837131]
[1733366506166,0.05,100820.0,100800.0,0.00837131]
[1733366506802,0.05,100820.0,100800.0,0.00852294]
[1733366508600,0.05,100820.0,100720.0,0.5833]
[1733366508601,0.198394,100810.0,100720.0,0.5833]
[1733366508816,0.198473,100770.0,100720.0,0.53809354]
[1733366509022,0.198475,100770.0,100720.0,0.53809354]
[1733366509231,0.198532,100740.0,100720.0,0.53809354]
[1733366509461,0.198565,100730.0,100690.0,0.5392136]
[1733366509717,0.397149,100720.0,100670.0,1.22592104]
[1733366509918,0.19861,100700.0,100670.0,1.22592104]
[1733366510127,0.19861,100700.0,100670.0,1.21036527]
[1733366510334,0.00516976,100730.0,100670.0,1.21036527]
[1733366510537,0.198556,100730.0,100670.0,1.21036527]
[1733366510748,0.00516976,100750.0,100670.0,1.21036527]
[1733366510959,0.04925316,101000.0,100670.0,1.21036527]
[1733366511166,0.198439,100790.0,100670.0,1.21036527]
[1733366511402,0.198531,100740.0,100670.0,1.21036527]
[1733366511630,0.198552,100730.0,100670.0,1.21036527]
[1733366511838,0.198536,100740.0,100670.0,1.21036527]
[1733366512043,0.198471,100770.0,100670.0,1.21036527]
[1733366512248,0.198471,100770.0,100680.0,0.02317586]
[1733366512492,0.198495,100760.0,100680.0,0.5375]
[1733366512703,0.198513,100750.0,100680.0,0.5610551]
[1733366512919,0.00059385,100770.0,100680.0,0.5375]
[1733366513132,0.00059385,100770.0,100690.0,0.20165409]
[1733366513356,0.00059385,100770.0,100690.0,0.6439]
[1733366513818,0.19906585,100770.0,100700.0,0.56032075]
[1733366514044,0.19906585,100770.0,100700.0,0.5375]
[1733366514045,0.00059385,100770.0,100700.0,0.5375]
[1733366514268,0.00059385,100770.0,100710.0,0.01747184]
[1733366514473,0.00059385,100770.0,100760.0,0.5375]
[1733366515127,0.00059385,100770.0,100760.0,0.5475]
[1733366515343,0.19906485,100770.0,100730.0,0.5175]
[1733366515551,0.00059385,100770.0,100730.0,0.5175]
[1733366515757,0.00059385,100770.0,100750.0,0.01985]
[1733366515959,0.00059385,100770.0,100750.0,0.5175]
[1733366516377,0.00059385,100770.0,100750.0,0.03913341]
[1733366516834,0.00059385,100770.0,100740.0,0.5175]
[1733366517023,0.00059385,100770.0,100750.0,0.03524103]
[1733366517724,0.05,100790.0,100760.0,0.019849]
[1733366517937,0.05,100790.0,100750.0,0.53794285]
[1733366518134,0.05,100790.0,100770.0,0.03709698]
[1733366518364,0.03016559,100790.0,100750.0,0.51809385]
[1733366519454,0.12444266,100780.0,100750.0,0.51809385]
[1733366519882,0.12444266,100780.0,100720.0,0.019855]
[1733366519883,0.12444266,100780.0,100720.0,0.5375]
[1733366520096,0.32350088,100780.0,100720.0,0.5375]
[1733366520356,0.19906422,100780.0,100720.0,0.5375]
[1733366520812,0.198471,100770.0,100680.0,0.6065766]
[1733366521032,0.198532,100740.0,100680.0,0.0017126]
[1733366521241,0.198595,100710.0,100680.0,0.0017126]
[1733366521718,0.198559,100730.0,100680.0,0.0017126]
[1733366521922,0.198591,100710.0,100670.0,0.41103854]
[1733366522147,0.02516559,100790.0,100670.0,0.92280068]
[1733366522363,0.00059347,100720.0,100680.0,0.60302743]
[1733366522600,0.19916447,100720.0,100680.0,0.03099619]
[1733366522844,0.198511,100750.0,100680.0,0.03099619]
[1733366523064,0.198511,100750.0,100680.0,0.03158966]
[1733366523288,0.396263,100690.0,100670.0,0.38530068]
[1733366523513,0.198649,100680.0,100670.0,0.38530068]
[1733366523730,0.197629,100690.0,100670.0,0.31084549]
[1733366524190,0.197629,100690.0,100670.0,0.21424113]
[1733366524389,0.198649,100680.0,100670.0,0.21424113]
[1733366524638,0.1992421,100680.0,100670.0,0.19415601]
[1733366524867,0.0005931,100680.0,100670.0,0.19415601]
[1733366525088,0.0005931,100680.0,100670.0,0.24816742]
[1733366525312,0.0005931,100680.0,100670.0,0.19415601]
[1733366525532,0.1992421,100680.0,100670.0,0.19415601]
[1733366525965,0.198708,100650.0,100640.0,0.0017126]
[1733366526184,0.0005931,100680.0,100640.0,0.0017126]